bitfinex/quotes_ETHUSD_20240825
["timestamp","ask_amount","ask_price","bid_price","bid_amount"]
[1724593328670,3.082866,2766.4,2765.7,3.61563]
[1724593328863,2.2673,2766.4,2765.9,3.61545]
[1724593329069,3.61473,2766.5,2765.9,3.61545]
[1724593329520,2.33027903,2766.7,2766.2,3.61506]
[1724593329719,2.33027903,2766.7,2766.0,2.2653]
[1724593329720,0.06297903,2766.7,2766.3,4.16491]
[1724593329870,2.2673,2766.9,2766.3,4.16491]
[1724593330211,3.082786,2766.9,2766.3,4.16491]
[1724593330511,2.2673,2766.9,2766.4,3.61471]
[1724593331603,5.88148,2766.9,2766.3,0.55]
[1724593331915,3.61429,2766.8,2766.3,0.55]
[1724593334671,3.6141,2767.0,2766.4,2.2653]
[1724593334890,4.64320076,2767.0,2766.3,4.16491]
[1724593335176,0.06296759,2767.1,2766.3,0.55]
[1724593335372,0.06296759,2767.1,2766.5,3.61455]
[1724593335569,0.06296759,2767.1,2766.3,4.16482]
[1724593335570,5.88132,2767.0,2766.3,7.77965]
[1724593335772,3.61418,2766.9,2766.3,4.16482]
[1724593336372,3.61418,2766.9,2766.4,3.61479]
[1724593336576,3.61418,2766.9,2766.5,0.55]
[1724593336817,4.57002276,2766.9,2766.5,0.55]
[1724593337419,4.57002276,2766.9,2766.2,3.61506]
[1724593337618,4.57002276,2766.9,2766.3,0.55]
[1724593337919,3.61428,2766.8,2766.3,0.55]
[1724593340485,3.61507,2766.2,2765.6,3.61573]
[1724593340883,3.61507,2766.2,2765.6,7.23149]
[1724593341517,3.61507,2766.2,2765.6,3.61573]
[1724593341710,3.61507,2766.2,2765.6,7.23148]
[1724593341919,3.61507,2766.2,2765.7,0.55]
[1724593342322,3.61507,2766.2,2765.6,7.2315]
[1724593342323,5.96275,2766.1,2765.5,3.61594]
[1724593342507,3.61542,2766.0,2765.4,3.61604]
[1724593342880,3.61542,2766.0,2765.4,7.23207]
[1724593343083,2.3475,2766.1,2765.5,3.61593]
[1724593343281,2.3475,2766.1,2765.4,3.61603]
[1724593343282,6.0025857,2766.1,2765.6,3.61583]
[1724593344024,6.0025857,2766.1,2765.6,7.23159]
[1724593344194,6.0025857,2766.1,2765.6,3.61576]
[1724593344195,3.0,2766.1,2765.6,3.61576]
[1724593344395,8.96246,2766.3,2765.6,7.23149]
[1724593344598,8.96246,2766.3,2765.6,3.61573]
[1724593344801,8.96246,2766.3,2765.7,3.61571]
[1724593345605,5.3475,2766.3,2765.9,3.61544]
[1724593346107,2.3475,2766.3,2765.9,3.61544]
[1724593346681,2.3475,2766.3,2765.4,2.3506]
[1724593346881,2.3475,2766.3,2765.8,3.61548]
[1724593348189,2.3475,2766.3,2765.8,7.23098]
[1724593348387,2.3475,2766.3,2765.8,3.61548]
[1724593349230,5.96246,2766.3,2765.8,3.61548]
[1724593350984,3.61511,2766.2,2765.6,3.61578]
[1724593351189,3.61511,2766.2,2765.5,0.55]
[1724593351190,3.61527,2766.1,2765.5,0.55]
[1724593351400,3.61527,2766.1,2765.5,4.16595]
[1724593352514,4.51766946,2766.2,2765.4,3.616]
[1724593352515,9.57836,2766.0,2765.4,3.616]
[1724593352838,7.01100195,2766.0,2765.4,3.616]
[1724593355724,7.01100195,2766.0,2765.4,7.23202]
[1724593355930,5.96291,2766.0,2765.5,3.61597]
[1724593358239,5.96291,2766.0,2765.4,3.616]
[1724593359101,5.96291,2766.0,2765.4,7.23202]
[1724593359851,5.96291,2766.0,2765.4,3.616]
[1724593360503,5.96291,2766.0,2765.4,7.23203]
[1724593361787,5.96291,2766.0,2765.5,3.61596]
[1724593362243,2.4787,2766.2,2765.5,3.22265735]
[1724593362449,7.46,2766.3,2766.0,3.61531]
[1724593363251,7.46,2766.3,2765.8,7.23096]
[1724593363696,7.46,2766.3,2765.9,3.61543]
[1724593363864,7.46,2766.3,2766.2,3.61506]
[1724593364061,2.4787,2766.7,2766.2,3.61506]
[1724593365310,2.4787,2766.7,2766.3,3.61491]
[1724593365481,7.46,2766.8,2766.3,3.61491]
[1724593367270,6.851969,2766.8,2766.3,3.61491]
[1724593368802,3.61468,2766.5,2765.9,3.61533]
[1724593369115,3.61468,2766.5,2766.0,0.55]
[1724593369316,3.61463,2766.6,2766.0,0.55]
[1724593369531,3.61463,2766.6,2765.8,2.4429]
[1724593369532,3.61501,2766.3,2765.7,3.61566]
[1724593369818,3.61492,2766.4,2765.7,7.2313]
[1724593369967,3.61491,2766.4,2765.7,3.61564]
[1724593370173,3.6151,2766.2,2765.5,6.05883]
[1724593371019,7.22983,2766.4,2765.7,3.61563]
[1724593371173,5.61665047,2766.4,2765.7,7.23127]
[1724593371919,3.61494,2766.3,2765.7,3.61561]
[1724593372105,5.61665047,2766.4,2765.7,7.23123]
[1724593372826,5.61665047,2766.4,2765.8,3.61555]
[1724593373521,2.00174047,2766.4,2765.9,3.61538]
[1724593376309,0.86751867,2766.3,2765.9,3.61538]
[1724593377785,2.4787,2766.2,2765.7,3.61559]
[1724593378318,2.4787,2766.2,2765.7,7.23122]
[1724593378539,2.4787,2766.2,2765.8,3.61557]
[1724593378708,2.84712986,2766.2,2765.8,3.61557]
[1724593379315,2.84712986,2766.2,2765.9,3.61545]
[1724593379639,2.84712986,2766.2,2765.8,3.6155]
[1724593379981,2.84712986,2766.2,2765.7,3.61571]
[1724593380675,2.84712986,2766.2,2765.5,2.4429]
[1724593380676,2.4787,2766.0,2765.5,3.6159]
[1724593380811,0.5800162,2765.9,2765.5,3.6159]
[1724593381340,0.5800162,2765.9,2765.5,7.23179]
[1724593381543,0.5800162,2765.9,2765.5,3.61589]
[1724593383819,2.3925,2765.8,2765.1,14.57285]
[1724593384016,2.3925,2765.7,2764.9,3.61672]
[1724593384363,2.3925,2765.4,2764.9,3.61672]
[1724593386630,6.00869,2765.4,2764.7,3.617]
[1724593386854,3.61627,2765.3,2764.7,3.617]
[1724593387071,2.3925,2765.1,2764.7,3.617]
[1724593387476,2.3925,2765.1,2764.5,3.61723]
[1724593387477,6.00902,2765.1,2764.5,3.61723]
[1724593393963,3.61663,2765.0,2764.5,3.61723]
[1724593395579,4.217247,2765.2,2764.3,3.61753]
[1724593395580,2.3925,2764.9,2764.4,3.61737]
[1724593395791,0.23925,2764.8,2764.4,3.61737]
[1724593395985,2.3925,2764.9,2764.4,3.61737]
[1724593399568,2.3925,2764.9,2764.3,3.61744]
[1724593399767,6.00927,2764.9,2764.4,0.55]
[1724593399963,6.00927,2764.9,2764.4,4.16741]
[1724593400274,6.00927,2764.9,2764.4,0.55]
[1724593400488,7.271847,2764.9,2764.4,0.55]
[1724593400825,2.3925,2764.7,2764.2,0.55]
[1724593400999,6.00953,2764.7,2764.2,0.55]
[1724593401164,3.61717,2764.6,2763.9,7.23596]
[1724593401370,3.61717,2764.6,2763.9,4.63578021]
[1724593401687,3.61717,2764.6,2764.0,3.61787]
[1724593402526,3.61717,2764.6,2763.8,2.3753]
[1724593402527,3.61743,2764.4,2763.8,3.61818]
[1724593402697,2.3217,2764.5,2763.7,3.61824]
[1724593402698,5.93926,2764.3,2763.7,3.61824]
[1724593403417,3.61782,2764.1,2763.5,7.23699]
[1724593403569,7.23571,2764.1,2763.5,3.61848]
[1724593403773,2.3217,2763.8,2763.4,3.6187]
[1724593403974,2.3217,2764.0,2763.7,3.61833]
[1724593404216,13.39929,2764.3,2763.7,3.61833]
[1724593404408,3.0,2764.2,2763.7,3.61833]
[1724593405331,3.0,2764.2,2763.5,3.61847]
[1724593405332,3.61782,2764.1,2763.5,3.61847]
[1724593405507,3.61808,2763.9,2763.3,3.61876]
[1724593405696,3.61808,2763.9,2763.3,7.23753]
[1724593406431,3.61808,2763.9,2763.3,3.61876]
[1724593406930,3.61808,2763.9,2763.4,0.55]
[1724593407507,3.61808,2763.9,2763.4,4.16869]
[1724593408030,3.61808,2763.9,2763.4,0.55]
[1724593410121,2.3217,2764.0,2763.4,4.16864]
[1724593410327,5.93964,2764.0,2763.4,4.16864]
[1724593412854,3.61813,2763.9,2763.4,0.55]
[1724593413000,3.61813,2763.9,2763.2,3.7511125]
[1724593413001,3.61822,2763.8,2763.3,4.16885]
[1724593413200,2.3217,2763.7,2763.3,4.16885]
[1724593414855,2.3217,2763.9,2763.3,4.16885]
[1724593415434,2.3217,2763.9,2763.3,4.84711925]
[1724593416051,2.3217,2763.9,2763.4,3.61863]
[1724593418250,6.61772,2764.2,2763.6,3.61845]
[1724593418251,8.93942,2764.2,2763.6,3.61845]
[1724593418818,12.5572,2764.2,2763.6,3.61845]
[1724593419161,3.61782,2764.1,2763.5,3.6185]
[1724593422017,3.61795,2764.0,2763.5,3.6185]
[1724593422409,7.23599,2764.0,2763.3,4.84700925]
[1724593422638,3.61819,2763.9,2763.3,8.46576925]
[1724593423233,3.61795,2764.0,2763.3,4.84700925]
[1724593423415,3.61782,2764.1,2763.5,3.61849]
[1724593424266,3.61798,2764.0,2763.4,0.74608517]
[1724593424424,7.23603,2764.0,2763.5,0.55]
[1724593424616,3.61808,2763.9,2763.5,0.55]
[1724593424824,3.61808,2763.9,2763.4,0.55]
[1724593425960,3.61825,2763.8,2763.4,0.55]
[1724593426113,3.61825,2763.8,2763.3,0.55]
[1724593426458,7.23654,2763.8,2763.3,0.55]
[1724593426631,3.61825,2763.8,2763.3,0.55]
[1724593426833,7.23654,2763.8,2763.3,0.55]
[1724593427025,3.61825,2763.8,2763.3,0.55]
[1724593427516,8.192297,2763.8,2763.3,0.55]
[1724593427916,8.25525931,2763.8,2763.3,0.55]
[1724593428414,4.63695931,2763.8,2763.3,0.55]
[1724593428818,8.25525931,2763.8,2763.3,0.55]
[1724593429670,3.61834,2763.7,2763.3,0.55]
[1724593430362,3.68121231,2763.8,2763.3,0.55]
[1724593430567,3.61833,2763.7,2763.3,0.55]
[1724593430866,3.61849,2763.6,2763.3,0.55]
[1724593431366,3.61825,2763.8,2763.3,0.55]
[1724593431550,7.23656,2763.8,2763.3,0.55]
[1724593431864,7.23654,2763.8,2763.3,0.55]
[1724593432625,3.61834,2763.7,2763.3,0.55]
[1724593434282,3.61825,2763.8,2763.3,0.55]
[1724593434573,3.61833,2763.7,2763.3,0.55]
[1724593436369,3.61854,2763.6,2763.2,0.1322425]
[1724593436540,5.93974,2763.6,2763.2,0.1322425]
[1724593437241,3.61879,2763.4,2763.2,0.1322425]
[1724593441346,3.61886,2763.3,2763.2,0.1322425]
[1724593441545,4.342625,2763.3,2763.2,0.1322425]
[1724593446166,9.674225,2763.3,2763.2,0.1322425]
[1724593446582,13.293085,2763.3,2763.2,0.1322425]
[1724593454406,15.56771924,2763.3,2763.2,0.1322425]
[1724593454723,13.293085,2763.3,2763.2,0.1322425]
[1724593461373,16.911945,2763.3,2763.2,0.1322425]
[1724593463707,19.18490012,2763.3,2763.2,0.1322425]
[1724593463903,16.911945,2763.3,2763.2,0.1322425]
[1724593464982,19.1841675,2763.3,2763.2,0.1322425]
[1724593465178,16.911945,2763.3,2763.2,0.1322425]
[1724593466023,16.911945,2763.3,2762.1,2.3025]
[1724593466024,7.342625,2763.3,2762.1,2.3025]
[1724593466319,7.342625,2763.3,2761.7,5.98384]
[1724593466320,3.62026,2762.3,2761.7,5.98384]
[1724593466692,3.62005,2762.4,2761.7,9.6047]
[1724593467025,7.24019,2762.4,2761.7,5.98376]
[1724593467399,3.62019,2762.3,2761.7,5.98376]
[1724593470125,3.62005,2762.4,2761.7,9.60459]
[1724593470287,7.2402,2762.4,2761.7,6.944189]
[1724593470697,7.24021,2762.4,2761.7,6.944189]
[1724593470899,3.62019,2762.3,2761.7,6.944189]
[1724593471845,3.62032,2762.2,2761.7,5.98373]
[1724593473199,3.62032,2762.2,2761.7,2.3629]
[1724593473750,3.62057,2762.0,2761.7,2.3629]
[1724593475232,3.62057,2762.0,2761.4,2.3125]
[1724593475561,3.62073,2761.9,2761.4,2.3125]
[1724593476261,2.3887,2761.8,2760.9,2.3125]
[1724593476471,3.62137,2761.4,2760.9,2.3125]
[1724593476598,3.62112,2761.6,2760.9,2.3125]
[1724593476804,7.24232,2761.6,2761.1,2.3125]
[1724593477003,3.0,2761.5,2761.1,2.3125]
[1724593477513,6.62123,2761.5,2761.1,2.3125]
[1724593477822,3.62105,2761.7,2761.1,6.527657]
[1724593478020,3.0,2761.6,2761.1,2.905927]
[1724593478257,3.62128,2761.5,2761.1,2.905927]
[1724593478454,6.62117,2761.6,2761.1,2.3125]
[1724593479308,3.0,2761.6,2761.3,2.3125]
[1724593479510,3.0,2761.7,2761.3,2.3125]
[1724593480160,6.62096,2761.7,2761.3,2.3125]
[1724593480310,3.6211,2761.6,2761.3,2.3125]
[1724593480515,3.62133,2761.5,2761.3,2.3125]
[1724593481255,3.62149,2761.3,2760.8,2.3125]
[1724593481461,3.62149,2761.3,2760.9,0.55]
[1724593481616,3.62149,2761.3,2761.0,2.3125]
[1724593482094,3.62127,2761.5,2761.0,2.3125]
[1724593482357,3.62142,2761.4,2761.0,2.3125]
[1724593482561,7.24357,2761.1,2760.6,2.4879]
[1724593482711,3.62174,2761.1,2760.6,2.4879]
[1724593483160,6.62153,2761.3,2760.5,3.7546725]
[1724593483361,6.62153,2761.3,2760.8,2.4879]
[1724593483713,6.62153,2761.3,2760.8,6.11002]
[1724593483929,6.62153,2761.3,2760.8,2.4879]
[1724593484678,2.3419,2761.2,2760.7,3.62216]
[1724593484824,3.62199,2761.0,2760.5,2.6201425]
[1724593485026,3.62208,2760.9,2760.5,2.6201425]
[1724593485326,7.24396,2761.0,2760.5,2.6201425]
[1724593485510,3.62201,2760.9,2760.5,2.6201425]
[1724593486813,3.62215,2760.8,2760.5,0.1322425]
[1724593487058,0.724412,2760.8,2760.5,0.1322425]
[1724593487274,3.6221,2760.9,2760.5,0.1322425]
[1724593487472,3.62195,2761.0,2760.5,0.1322425]
[1724593487674,6.622,2760.9,2760.5,0.1322425]
[1724593488171,3.0,2760.9,2760.5,0.1322425]
[1724593488371,3.62207,2760.9,2760.5,0.1322425]
[1724593490114,2.704027,2761.4,2760.6,2.4879]
[1724593490325,3.62129,2761.5,2761.0,6.10977]
[1724593490661,3.62129,2761.5,2761.0,2.4879]
[1724593490917,26.91208,2761.7,2761.0,6.10969]
[1724593491114,7.46,2761.7,2761.1,3.6217]
[1724593491415,11.08103,2761.7,2761.0,2.4879]
[1724593491602,3.62109,2761.6,2761.1,0.55]
[1724593493017,3.62122,2761.5,2761.1,0.55]
[1724593494478,11.08103,2761.7,2761.1,0.55]
[1724593495077,3.62116,2761.6,2761.1,0.55]
[1724593495917,3.62123,2761.5,2761.1,0.55]
[1724593498722,3.62157,2761.3,2760.7,2.4879]
[1724593498905,7.24316,2761.3,2760.7,6.11016]
[1724593499078,3.62163,2761.2,2760.7,2.4879]
[1724593499277,3.62163,2761.2,2760.7,6.11016]
[1724593499614,3.62157,2761.3,2760.7,6.11016]
[1724593499766,3.62157,2761.3,2760.8,3.62209]
[1724593499968,3.62128,2761.5,2760.8,3.62203]
[1724593500211,3.62128,2761.5,2760.9,3.62197]
[1724593500415,7.2426,2761.5,2760.9,3.62197]
[1724593500784,3.62136,2761.4,2760.8,3.62203]
[1724593500999,3.62128,2761.5,2760.8,3.62203]
[1724593501000,3.62128,2761.5,2760.8,4.69390292]
[1724593501187,3.62128,2761.5,2760.9,6.10989]
[1724593501807,3.62142,2761.4,2760.9,6.10989]
[1724593502825,3.62149,2761.3,2760.9,2.4879]
[1724593503359,3.62169,2761.2,2760.7,2.4879]
[1724593503475,3.62149,2761.3,2760.5,2.6201425]
[1724593503476,3.62203,2760.9,2760.5,2.6201425]
[1724593503676,3.6218,2761.1,2760.5,6.2426625]
[1724593504007,0.66218,2761.0,2760.5,6.2426625]
[1724593504175,4.28406,2761.0,2760.5,6.2426625]
[1724593504378,4.28406,2761.0,2760.5,2.6201425]
[1724593506153,0.66218,2761.0,2760.5,6.2426525]
[1724593506332,4.28405,2761.0,2760.5,2.6201425]
[1724593506532,0.790585,2760.9,2760.5,2.6201425]
[1724593506917,3.240585,2760.9,2760.5,0.1322425]
[1724593507114,7.2448,2760.6,2760.5,0.1322425]
[1724593507663,10.2448,2760.6,2760.5,0.1322425]
[1724593507958,16.3172,2760.6,2760.5,1.9482425]
[1724593508258,12.6948,2760.6,2760.5,1.9482425]
[1724593512163,12.6948,2760.6,2760.5,0.1322425]
[1724593512393,14.32651,2760.6,2760.5,0.1322425]
[1724593515589,8.25411,2760.6,2760.5,0.1322425]
[1724593515797,3.0,2760.6,2760.5,0.1322425]
[1724593515999,0.06255431,2760.8,2760.5,0.1322425]
[1724593516000,0.06255431,2760.8,2760.5,2.5169425]
[1724593516206,3.62192,2761.0,2760.5,2.5169425]
[1724593516510,3.62192,2761.0,2760.5,4.3309425]
[1724593516676,3.984112,2761.0,2760.5,4.3309425]
[1724593517079,3.6221,2760.9,2760.5,4.3309425]
[1724593517306,3.62216,2760.8,2760.5,4.3309425]
[1724593518200,3.984112,2761.0,2760.5,1.9462425]
[1724593518201,3.62234,2760.7,2760.5,1.9462425]
[1724593519803,3.6224,2760.6,2760.5,1.9462425]
[1724593520006,4.346874,2760.6,2760.5,1.9462425]
[1724593520623,0.724474,2760.6,2760.5,1.9462425]
[1724593520803,3.62226,2760.8,2760.5,1.9462425]
[1724593522024,3.62229,2760.7,2760.5,1.9462425]
[1724593523788,7.24466,2760.7,2760.5,1.9462425]
[1724593523990,3.62229,2760.7,2760.5,1.9462425]
[1724593524204,4.346725,2760.7,2760.5,1.9462425]
[1724593525440,3.6224,2760.6,2760.5,1.9462425]
[1724593525625,9.6523,2760.6,2760.5,1.9462425]
[1724593526405,12.6523,2760.6,2760.5,1.73337222]
[1724593526696,2.4075,2760.4,2759.1,2.2805]
[1724593526942,2.4075,2760.4,2759.0,0.56786902]
[1724593526943,3.62326,2760.0,2759.3,3.62398]
[1724593527149,3.62294,2760.2,2759.3,3.62398]
[1724593527150,3.0,2760.5,2759.8,3.62335]
[1724593527353,3.0,2760.5,2759.2,3.6242]
[1724593527354,6.62253,2760.5,2759.9,5.90371]
[1724593527495,3.62267,2760.4,2759.9,2.2805]
[1724593527910,3.0,2760.3,2759.9,5.90378]
[1724593528195,3.62267,2760.4,2759.9,5.90378]
[1724593528942,6.6224,2760.6,2759.9,5.90373]
[1724593529143,10.2449,2760.6,2759.9,6.856455]
[1724593529303,10.24491,2760.6,2759.9,6.856455]
[1724593529498,3.62255,2760.5,2759.9,6.856455]
[1724593529750,6.6224,2760.6,2759.9,6.856455]
[1724593529751,3.62266,2760.4,2759.9,6.856455]
[1724593529929,3.62266,2760.4,2759.9,5.90373]
[1724593530449,3.62266,2760.4,2759.9,2.2805]
[1724593530635,3.623,2760.2,2759.9,2.2805]
[1724593532313,7.2454,2760.4,2759.9,2.2805]
[1724593532515,6.62245,2760.6,2759.9,5.90371]
[1724593532956,3.62266,2760.4,2759.9,5.90371]
[1724593533155,3.62266,2760.4,2759.9,2.2805]
[1724593533336,3.62266,2760.4,2759.9,5.90378]
[1724593534737,3.62266,2760.4,2759.9,2.2805]
[1724593535108,7.24543,2760.4,2759.9,2.2805]
[1724593535708,3.62281,2760.3,2759.9,2.2805]
[1724593536339,3.62266,2760.4,2759.7,5.90397]
[1724593536525,7.24606,2760.2,2759.7,2.2805]
[1724593536827,3.62307,2760.1,2759.7,2.2805]
[1724593537513,3.62301,2760.2,2759.7,2.2805]
[1724593538765,3.62301,2760.2,2759.7,5.90408]
[1724593539535,3.62273,2760.4,2759.7,5.90408]
[1724593539536,3.62273,2760.4,2759.7,5.90397]
[1724593539877,7.24548,2760.4,2759.8,3.62343]
[1724593540170,3.62273,2760.4,2759.8,3.62343]
[1724593540922,3.6228,2760.3,2759.8,3.62343]
[1724593541122,3.6228,2760.3,2759.7,6.2980753]
[1724593541357,3.6228,2760.3,2759.7,9.9215753]
[1724593541580,3.62273,2760.4,2759.7,9.9215753]
[1724593541581,3.0,2760.6,2760.1,3.62298]
[1724593541939,7.30726447,2760.7,2760.2,2.2805]
[1724593542140,3.68490447,2760.7,2760.2,2.2805]
[1724593542962,0.06261447,2760.7,2760.2,2.2805]
[1724593543733,6.68499447,2760.7,2760.2,2.2805]
[1724593543954,7.71570892,2760.7,2760.2,2.2805]
[1724593544426,3.62241,2760.6,2760.2,2.2805]
[1724593545733,7.2449,2760.6,2760.2,2.2805]
[1724593545934,3.62241,2760.6,2760.2,2.2805]
[1724593548470,3.06261447,2760.7,2760.3,4.17268]
[1724593548676,0.06261447,2760.7,2760.3,4.17268]
[1724593549333,0.06261447,2760.7,2760.4,5.99693]
[1724593549528,0.06261447,2760.7,2760.4,2.3744]
[1724593549781,5.89951132,2761.2,2760.5,3.62243]
[1724593549943,3.62167,2761.2,2760.6,2.3744]
[1724593550651,7.46,2761.3,2760.7,3.62223]
[1724593550855,3.62141,2761.4,2760.8,2.9244]
[1724593551234,11.08114,2761.6,2761.0,3.62187]
[1724593551435,7.46,2761.6,2761.1,2.3744]
[1724593551635,7.46,2761.6,2761.3,3.62147]
[1724593551982,3.62079,2761.9,2761.4,2.3744]
[1724593552182,3.62085,2761.8,2761.4,2.3744]
[1724593552352,3.62104,2761.7,2761.4,2.3744]
[1724593552744,0.95192713,2761.9,2761.4,2.3744]
[1724593552745,4.57270713,2761.9,2761.4,2.3744]
[1724593554484,0.95192713,2761.9,2761.4,2.3744]
[1724593554690,3.95192713,2761.9,2761.4,2.3744]
[1724593555195,3.0,2761.9,2761.5,2.3744]
[1724593555388,3.62052,2762.1,2761.5,2.3744]
[1724593555772,11.14292907,2762.2,2761.5,2.3744]
[1724593555773,3.62057,2762.0,2761.5,2.3744]
[1724593558644,11.14292907,2762.2,2761.5,5.9956]
[1724593558848,3.0,2762.1,2761.5,5.9956]
[1724593559078,3.0,2762.1,2761.5,6.957283]
[1724593559243,6.62047,2762.1,2761.5,6.957283]
[1724593559704,3.0,2762.1,2761.5,6.957283]
[1724593560005,6.62046,2762.1,2761.5,6.957283]
[1724593560491,3.0,2762.1,2761.5,6.957283]
[1724593560993,7.52260907,2762.2,2761.6,4.6789013]
[1724593561385,11.14297907,2762.2,2761.6,4.6789013]
[1724593562292,3.62047,2762.1,2761.6,1.0578513]
[1724593562594,3.62056,2762.0,2761.5,2.3744]
[1724593562766,3.62056,2762.0,2761.6,0.55]
[1724593563449,11.14297907,2762.2,2761.6,0.55]
[1724593563680,14.76337907,2762.2,2761.6,4.17108]
[1724593563847,3.62044,2762.1,2761.6,5.187751]
[1724593564406,7.30337907,2762.2,2761.6,5.187751]
[1724593564762,3.68297907,2762.2,2761.6,5.187751]
[1724593565139,0.06260907,2762.2,2761.8,6.01532]
[1724593565404,0.06260907,2762.2,2761.9,6.56509]
[1724593565556,0.06260907,2762.2,2762.0,4.6463641]
[1724593565759,3.61984,2762.6,2762.0,4.6463641]
[1724593565760,3.61958,2762.8,2762.2,2.3945]
[1724593565965,7.2392,2762.8,2762.2,2.3945]
[1724593566200,3.61958,2762.8,2762.2,2.3945]
[1724593566899,3.61969,2762.7,2762.2,6.01478]
[1724593567123,11.07949,2762.9,2762.2,6.01478]
[1724593567266,5.089431,2762.8,2762.2,6.01478]
[1724593567609,3.0,2762.7,2762.2,6.01478]
[1724593567956,6.61967,2762.7,2762.2,2.3945]
[1724593568365,3.61979,2762.6,2762.2,2.3945]
[1724593568843,3.0,2762.7,2762.2,2.3945]
[1724593569141,6.61972,2762.7,2762.2,2.3945]
[1724593569304,1.1709151,2762.6,2762.2,2.3945]
[1724593570130,3.0,2762.7,2762.2,6.01478]
[1724593570639,3.0,2762.7,2762.3,3.62016]
[1724593570804,3.0,2762.8,2762.4,2.3945]
[1724593571004,3.0,2762.8,2762.4,6.01453]
[1724593572389,3.0,2762.8,2762.4,2.3945]
[1724593573192,6.61955,2762.8,2762.4,2.3945]
[1724593573542,8.027505,2762.8,2762.4,2.3945]
[1724593573706,6.61955,2762.8,2762.4,2.3945]
[1724593576861,3.61902,2763.2,2762.5,6.56432]
[1724593577062,3.0,2763.1,2762.6,3.61975]
[1724593577210,3.61902,2763.2,2762.7,2.9445]
[1724593577416,5.088802,2763.2,2762.7,2.9445]
[1724593577611,3.61948,2762.9,2762.5,2.3945]
[1724593577851,3.61952,2762.8,2762.5,2.3945]
[1724593578216,7.2387,2763.0,2762.5,2.3945]
[1724593578415,3.61935,2763.0,2762.5,2.3945]
[1724593579456,3.61935,2763.0,2762.5,2.85214181]
[1724593579665,7.2387,2763.0,2762.5,2.3945]
[1724593579880,3.61935,2763.0,2762.5,2.3945]
[1724593580205,3.61934,2763.0,2762.5,2.3945]
[1724593580373,3.61961,2762.8,2762.5,2.3945]
[1724593580575,3.981571,2762.8,2762.5,2.3945]
[1724593580788,3.61961,2762.8,2762.5,2.3945]
[1724593582877,3.61961,2762.8,2762.2,3.62022]
[1724593582878,3.61961,2762.8,2762.3,2.4234]
[1724593583078,7.23922,2762.8,2762.4,0.55]
[1724593583322,3.61961,2762.8,2762.4,0.55]
[1724593584026,3.61941,2762.9,2762.4,0.55]
[1724593584981,3.61972,2762.7,2762.3,2.4234]
[1724593585181,7.23948,2762.7,2762.1,6.04379]
[1724593585626,7.46,2762.9,2762.1,2.4234]
[1724593585826,3.61994,2762.5,2762.1,2.4234]
[1724593586629,7.23976,2762.6,2762.1,2.4234]
[1724593587122,3.61988,2762.6,2762.1,2.4234]
[1724593587779,4.7263073,2762.8,2762.1,2.4234]
[1724593588069,3.0,2762.7,2762.1,2.4234]
[1724593588245,4.51863073,2762.7,2762.2,3.62028]
[1724593588841,4.51863073,2762.7,2762.2,3.62022]
[1724593589061,4.51863073,2762.7,2762.2,7.24043]
[1724593589375,4.51863073,2762.7,2762.2,3.62021]
[1724593590447,4.51863073,2762.7,2762.4,3.61996]
[1724593590448,3.0,2762.7,2762.4,3.61996]
[1724593590649,3.0,2762.8,2762.4,3.61996]
[1724593590843,3.0,2762.9,2762.4,3.61996]
[1724593591183,10.23887,2762.9,2762.3,6.04345]
[1724593591354,7.87786862,2762.9,2762.3,6.04345]
[1724593592056,7.87786862,2762.9,2762.3,9.66354]
[1724593592258,6.61939,2762.9,2762.3,9.66354]
[1724593593078,3.0,2762.9,2762.3,6.04345]
[1724593593274,3.06271622,2763.0,2762.4,4.16993]
[1724593593488,3.61939,2762.9,2762.4,4.16993]
[1724593594246,6.68197622,2763.0,2762.4,7.78989]
[1724593594747,6.68197622,2763.0,2762.4,4.16993]
[1724593595228,7.71209184,2763.0,2762.4,4.16993]
[1724593595379,6.68197622,2763.0,2762.4,4.16993]
[1724593595749,3.61938,2762.9,2762.4,4.16993]
[1724593598144,3.06271622,2763.0,2762.4,4.16993]
[1724593598145,3.06271622,2763.0,2762.5,2.2595]
[1724593598349,3.06271622,2763.0,2762.7,3.61962]
[1724593598662,0.06271622,2763.0,2762.5,5.87928]
[1724593599011,0.06271622,2763.0,2762.7,2.2595]
[1724593599469,3.61912,2763.1,2762.7,2.2595]
[1724593599894,7.23832,2763.1,2762.7,2.2595]
[1724593600479,3.61933,2763.0,2762.7,2.2595]
[1724593601004,3.61933,2763.0,2762.5,2.2595]
[1724593601206,3.61946,2762.9,2762.5,2.2595]
[1724593601710,7.23868,2763.0,2762.5,2.2595]
[1724593601910,6.61906,2763.2,2762.6,0.55]
[1724593602215,3.61913,2763.1,2762.6,0.55]
[1724593602415,6.61906,2763.2,2762.6,0.55]
[1724593602416,3.61926,2763.0,2762.6,0.55]
[1724593603060,6.61906,2763.2,2762.6,0.55]
[1724593603602,3.61913,2763.1,2762.6,0.55]
[1724593604706,3.61913,2763.1,2762.6,4.16975]
[1724593604911,3.61913,2763.1,2762.6,5.2696486]
[1724593605422,3.0,2763.2,2762.8,3.6195]
[1724593605613,3.0,2763.2,2762.9,2.473]
[1724593605816,3.0,2763.2,2762.9,6.09238]
[1724593605997,10.17758592,2763.7,2762.9,6.09238]
[1724593605998,5.89406589,2763.6,2762.9,6.09238]
[1724593606201,7.52272404,2763.7,2763.3,6.09176]